[Event "European Amateur-ch U1700 2019"]
[Site "Rhodes"]
[Date "2019.04.08"]
[Round "3.1"]
[White "Kanev, Evgeny"]
[Black "Taddia, Davide"]
[Result "1/2-1/2"]
[ECO "A40"]
[WhiteElo "1629"]
[BlackElo "1519"]
[Annotator "NA"]
[PlyCount "109"]
[EventDate "2019.04.06"]
[EventType "swiss"]
[EventCountry "GRE"]
[SourceTitle "playchess.com"]
[Source "ChessBase"]
[SourceQuality "1"]
[TimeControl "40/5400+30:1800+30"]

1. d4 {[%emt 0:00:00]} e6 {[%emt 0:00:00]} 2. c4 {[%emt 0:00:00]} b6 {[%emt 0:00:00]} 3. Nf3 {[%emt 0:00:07]} Bb7 {[%emt 0:00:01]} 4. g3 {[%emt 0:00:03]} Bb4+ {[%emt 0:01:12]} 5. Bd2 {[%emt 0:00:06]} Bxd2+ {[%emt 0:03:07]} 6. Nbxd2 {[%emt 0:00:08]} f5 {[%emt 0:00:15]} 7. Bg2 {[%emt 0:01:06]} Nf6 {[%emt 0:00:47]} 8. O-O {[%emt 0:00:35]} O-O {[%emt 0:00:06]} 9. b4 {[%emt 0:04:04]} Qe7 {[%emt 0:04:04]} 10. Qb3 {[%emt 0:02:12]} a5 {[%emt 0:00:45]} 11. a3 {[%emt 0:03:30]} d6 {[%emt 0:06:26]} 12. b5 {[%emt 0:02:30]} Nbd7 {[%emt 0:00:38]} 13. Rfe1 {[%emt 0:02:19]} Ne4 {[%emt 0:01:53]} 14. Rad1 {[%emt 0:06:03]} Ndf6 {[%emt 0:02:22]} 15. Nxe4 {[%emt 0:04:00]} Bxe4 {[%emt 0:00:33]} 16. Nd2 {[%emt 0:03:24]} Bxg2 {[%emt 0:01:34]} 17. Kxg2 {[%emt 0:00:01]} Qf7 {[%emt 0:00:41]} 18. f3 {[%emt 0:01:10]} e5 {[%emt 0:03:05]} 19. d5 {[%emt 0:01:09]} Qg6 {[%emt 0:01:04]} 20. e4 {[%emt 0:03:18]} f4 {[%emt 0:03:00]} 21. Kh1 {[%emt 0:12:44]} Nh5 {[%emt 0:01:19]} 22. g4 {[%emt 0:00:27]} Nf6 {[%emt 0:00:31]} 23. Rg1 {[%emt 0:01:40]} Kf7 {[%emt 0:00:25]} 24. Rg2 {[%emt 0:02:18]} Rh8 {[%emt 0:00:24]} 25. Rdg1 {[%emt 0:00:58]} Rag8 {[%emt 0:00:19]} 26. c5 {[%emt 0:05:43]} Rc8 {[%emt 0:00:38]} 27. Nc4 {[%emt 0:05:47]} Nd7 {[%emt 0:02:51]} 28. cxb6 {[%emt 0:04:01]} cxb6 {[%emt 0:00:43]} 29. Rc1 {[%emt 0:03:24]} Rc5 {[%emt 0:00:35]} 30. Rgc2 {[%emt 0:05:20]} Rhc8 {[%emt 0:00:27]} 31. Qd3 {[%emt 0:06:03]} Ke7 {[%emt 0:08:23]} 32. Qe2 {[%emt 0:01:00]} Qf6 {[%emt 0:01:18]} 33. Qg2 {[%emt 0:01:52]} g5 {[%emt 0:02:21]} 34. a4 {[%emt 0:07:27]} Kd8 {[%emt 0:01:59]} 35. Qd2 {[%emt 0:02:19]} Kc7 {[%emt 0:00:37]} 36. Nb2 {[%emt 0:09:04]} Kb7 {[%emt 0:01:38]} 37. Nc4 {[%emt 0:01:39]} Ra8 {[%emt 0:05:26]} 38. Nb2 {[%emt 0:00:20]} Rxc2 {[%emt 0:00:26]} 39. Qxc2 {[%emt 0:00:26]} Nc5 {[%emt 0:00:17]} 40. Nd3 {[%emt 0:00:00]} Rc8 {[%emt 0:00:00]} 41. Nxc5+ {[%emt 0:02:17]} dxc5 {[%emt 0:04:57]} 42. Qc4 {[%emt 0:01:57]} Qd6 {[%emt 0:00:43]} 43. Qf1 {[%emt 0:01:10]} Qh6 {[%emt 0:02:00]} 44. Kg2 {[%emt 0:01:52]} Rd8 {[%emt 0:00:34]} 45. Qf2 {[%emt 0:02:40]} Rd6 {[%emt 0:00:52]} 46. Kf1 {[%emt 0:02:18]} Qh3+ {[%emt 0:01:40]} 47. Qg2 {[%emt 0:06:25]} Qh4 {[%emt 0:01:09]} 48. Rd1 {[%emt 0:02:46]} h5 {[%emt 0:03:15]} 49. h3 {[%emt 0:08:17]} Kc7 {[%emt 0:01:54]} 50. Ke2 {[%emt 0:02:34]} hxg4 {[%emt 0:01:05]} 51. fxg4 {[%emt 0:04:05]} Rf6 {[%emt 0:00:58]} 52. Rd3 {[%emt 0:00:15]} Kd6 {[%emt 0:00:30]} 53. Kf3 {[%emt 0:00:23]} Rh6 {[%emt 0:00:59]} 54. Ke2 {[%emt 0:00:21]} Rh8 {[%emt 0:00:50]} 55. Rf3 {[%emt 0:00:29]} 1/2-1/2

[Event "European Amateur-ch U1700 2019"]
[Site "Rhodes"]
[Date "2019.04.08"]
[Round "3.2"]
[White "Kostov, Kiril"]
[Black "De Luca, Andrew"]
[Result "1-0"]
[ECO "B22"]
[WhiteElo "1625"]
[BlackElo "1483"]
[Annotator "NA"]
[PlyCount "121"]
[EventDate "2019.04.06"]
[EventType "swiss"]
[EventCountry "GRE"]
[SourceTitle "playchess.com"]
[Source "ChessBase"]
[SourceQuality "1"]
[TimeControl "40/5400+30:1800+30"]

1. e4 {[%emt 0:00:21]} c5 {[%emt 0:00:00]} 2. c3 {[%emt 0:00:44]} d6 {[%emt 0:02:46]} 3. d4 {[%emt 0:00:42]} Nd7 {[%emt 0:00:58]} 4. Nf3 {[%emt 0:01:31]} Rb8 {[%emt 0:00:57]} 5. Be3 {[%emt 0:01:15]} Qc7 {[%emt 0:01:42]} 6. Bd3 {[%emt 0:01:37]} c4 {[%emt 0:01:42]} 7. Bc2 {[%emt 0:00:15]} b5 {[%emt 0:01:21]} 8. Nbd2 {[%emt 0:02:47]} g6 {[%emt 0:01:52]} 9. O-O {[%emt 0:02:40]} Bg7 {[%emt 0:00:28]} 10. Qe2 {[%emt 0:00:10]} Bb7 {[%emt 0:01:57]} 11. a4 {[%emt 0:02:19]} a6 {[%emt 0:00:34]} 12. axb5 {[%emt 0:00:46]} axb5 {[%emt 0:00:17]} 13. d5 {[%emt 0:01:50]} Ngf6 {[%emt 0:02:02]} 14. Nd4 {[%emt 0:01:48]} Nc5 {[%emt 0:04:13]} 15. Nxb5 {[%emt 0:03:41]} Qd7 {[%emt 0:05:50]} 16. Bxc5 {[%emt 0:01:14]} dxc5 {[%emt 0:02:49]} 17. Nxc4 {[%emt 0:02:24]} Bxd5 {[%emt 0:02:18]} 18. exd5 {[%emt 0:01:00]} O-O {[%emt 0:01:38]} 19. Nca3 {[%emt 0:02:03]} Qxd5 {[%emt 0:02:12]} 20. Qxe7 {[%emt 0:02:57]} c4 {[%emt 0:01:24]} 21. Rfd1 {[%emt 0:00:53]} Qb7 {[%emt 0:03:56]} 22. Qxb7 {[%emt 0:01:34]} Rxb7 {[%emt 0:00:08]} 23. Rd4 {[%emt 0:01:26]} Rfb8 {[%emt 0:02:51]} 24. Rxc4 {[%emt 0:04:38]} h5 {[%emt 0:01:28]} 25. Ba4 {[%emt 0:01:22]} Nd5 {[%emt 0:01:37]} 26. Rc5 {[%emt 0:02:07]} Nb6 {[%emt 0:00:32]} 27. Bc2 {[%emt 0:00:50]} Nd7 {[%emt 0:00:32]} 28. Rd5 {[%emt 0:02:05]} f5 {[%emt 0:02:38]} 29. Rad1 {[%emt 0:00:21]} Nf8 {[%emt 0:01:38]} 30. b3 {[%emt 0:01:32]} Kh7 {[%emt 0:01:03]} 31. c4 {[%emt 0:00:27]} Ne6 {[%emt 0:00:45]} 32. Rd7 {[%emt 0:01:33]} Rb6 {[%emt 0:01:09]} 33. R7d6 {[%emt 0:00:21]} Nf4 {[%emt 0:01:48]} 34. Rxb6 {[%emt 0:00:23]} Rxb6 {[%emt 0:00:09]} 35. Rd6 {[%emt 0:01:20]} Rb8 {[%emt 0:00:48]} 36. Kf1 {[%emt 0:02:46]} Ra8 {[%emt 0:02:55]} 37. Rd7 {[%emt 0:03:23]} Kh6 {[%emt 0:00:54]} 38. Ra7 {[%emt 0:01:09]} Rd8 {[%emt 0:01:39]} 39. g3 {[%emt 0:00:48]} Nh3 {[%emt 0:00:28]} 40. Nb1 {[%emt 0:00:00]} Bf8 {[%emt 0:00:00]} 41. Kg2 {[%emt 0:03:24]} Ng5 {[%emt 0:02:31]} 42. Ra6 {[%emt 0:03:52]} Kg7 {[%emt 0:01:16]} 43. f4 {[%emt 0:02:02]} Ne4 {[%emt 0:01:04]} 44. Bxe4 {[%emt 0:01:53]} fxe4 {[%emt 0:00:13]} 45. Re6 {[%emt 0:00:20]} Rd1 {[%emt 0:00:33]} 46. N5c3 {[%emt 0:00:49]} Rd4 {[%emt 0:01:01]} 47. Rxe4 {[%emt 0:00:19]} Rd3 {[%emt 0:02:22]} 48. Kf2 {[%emt 0:02:28]} Bb4 {[%emt 0:02:33]} 49. Ke2 {[%emt 0:00:19]} Rd8 {[%emt 0:01:42]} 50. Nd5 {[%emt 0:00:15]} Bd6 {[%emt 0:01:23]} 51. Nbc3 {[%emt 0:00:42]} Rb8 {[%emt 0:00:41]} 52. Nb5 {[%emt 0:02:12]} Bc5 {[%emt 0:00:56]} 53. Ndc7 {[%emt 0:02:58]} Bg1 {[%emt 0:01:35]} 54. h3 {[%emt 0:01:05]} Kh6 {[%emt 0:00:39]} 55. b4 {[%emt 0:01:24]} Rd8 {[%emt 0:00:23]} 56. Re8 {[%emt 0:02:16]} Rd7 {[%emt 0:00:40]} 57. c5 {[%emt 0:01:16]} Bh2 {[%emt 0:00:16]} 58. c6 {[%emt 0:00:41]} Rf7 {[%emt 0:00:21]} 59. Ne6 {[%emt 0:03:36]} Bxg3 {[%emt 0:00:41]} 60. Rh8+ {[%emt 0:00:09]} Rh7 {[%emt 0:00:43]} 61. Rxh7+ {[%emt 0:00:17]} 1-0

[Event "European Amateur-ch U1700 2019"]
[Site "Rhodes"]
[Date "2019.04.08"]
[Round "3.3"]
[White "Cebo, Vladimir"]
[Black "Grishina, Zhanna"]
[Result "1/2-1/2"]
[ECO "D40"]
[WhiteElo "1602"]
[BlackElo "1482"]
[Annotator "NA"]
[PlyCount "85"]
[EventDate "2019.04.06"]
[EventType "swiss"]
[EventCountry "GRE"]
[SourceTitle "playchess.com"]
[Source "ChessBase"]
[SourceQuality "1"]
[TimeControl "40/5400+30:1800+30"]

1. c4 {[%emt 0:00:00]} e6 {[%emt 0:00:00]} 2. Nc3 {[%emt 0:00:00]} c5 {[%emt 0:00:34]} 3. e3 {[%emt 0:00:21]} d5 {[%emt 0:02:04]} 4. d4 {[%emt 0:05:26]} Nc6 {[%emt 0:01:20]} 5. Nf3 {[%emt 0:00:21]} Nf6 {[%emt 0:00:07]} 6. Be2 {[%emt 0:01:46]} dxc4 {[%emt 0:00:28]} 7. Bxc4 {[%emt 0:01:43]} cxd4 {[%emt 0:00:34]} 8. Nxd4 {[%emt 0:03:15]} Nxd4 {[%emt 0:00:17]} 9. exd4 {[%emt 0:01:55]} Be7 {[%emt 0:01:43]} 10. O-O {[%emt 0:01:10]} O-O {[%emt 0:00:04]} 11. Bf4 {[%emt 0:01:25]} a6 {[%emt 0:00:30]} 12. d5 {[%emt 0:05:14]} b5 {[%emt 0:04:16]} 13. d6 {[%emt 0:02:53]} bxc4 {[%emt 0:03:50]} 14. dxe7 {[%emt 0:00:22]} Qxe7 {[%emt 0:00:03]} 15. Bd6 {[%emt 0:01:21]} Qe8 {[%emt 0:00:38]} 16. Bxf8 {[%emt 0:00:25]} Qxf8 {[%emt 0:00:06]} 17. Qe2 {[%emt 0:02:08]} Qc5 {[%emt 0:06:34]} 18. Ne4 {[%emt 0:02:59]} Qe5 {[%emt 0:03:13]} 19. Nxf6+ {[%emt 0:08:09]} Qxf6 {[%emt 0:00:02]} 20. Qf3 {[%emt 0:05:01]} Qxf3 {[%emt 0:00:37]} 21. gxf3 {[%emt 0:00:02]} Bb7 {[%emt 0:01:52]} 22. Kg2 {[%emt 0:00:18]} Rb8 {[%emt 0:02:18]} 23. Rfe1 {[%emt 0:04:08]} Bd5 {[%emt 0:00:56]} 24. Rab1 {[%emt 0:01:59]} g5 {[%emt 0:01:22]} 25. Kg3 {[%emt 0:01:10]} h5 {[%emt 0:05:39]} 26. h4 {[%emt 0:05:22]} gxh4+ {[%emt 0:00:37]} 27. Kxh4 {[%emt 0:00:03]} Bxf3 {[%emt 0:00:14]} 28. Re3 {[%emt 0:00:24]} Bg4 {[%emt 0:06:03]} 29. b3 {[%emt 0:01:01]} Kh7 {[%emt 0:09:03]} 30. Rc1 {[%emt 0:03:17]} cxb3 {[%emt 0:02:52]} 31. Rxb3 {[%emt 0:02:09]} Rxb3 {[%emt 0:07:10]} 32. axb3 {[%emt 0:00:23]} Kh6 {[%emt 0:00:21]} 33. Rc7 {[%emt 0:00:59]} Kg6 {[%emt 0:04:47]} 34. b4 {[%emt 0:02:22]} Be2 {[%emt 0:05:29]} 35. Rc5 {[%emt 0:05:41]} f5 {[%emt 0:07:42]} 36. Re5 {[%emt 0:04:54]} Bc4 {[%emt 0:00:16]} 37. Re1 {[%emt 0:07:36]} Kh6 {[%emt 0:05:44]} 38. Rc1 {[%emt 0:00:38]} Bd5 {[%emt 0:01:10]} 39. Rc8 {[%emt 0:00:53]} Kg6 {[%emt 0:02:30]} 40. f4 {[%emt 0:00:00]} Bf3 {[%emt 0:00:00]} 41. Rd8 {[%emt 0:05:04]} Kf6 {[%emt 0:08:13]} 42. Rd6 {[%emt 0:01:18]} Be2 {[%emt 0:01:37]} 43. Rb6 {[%emt 0:03:03]} 1/2-1/2

[Event "European Amateur-ch U1700 2019"]
[Site "Rhodes"]
[Date "2019.04.08"]
[Round "3.4"]
[White "Meremyanina, Kseniya"]
[Black "Pereverzev, Timofei"]
[Result "0-1"]
[ECO "B23"]
[WhiteElo "1577"]
[BlackElo "1463"]
[Annotator "NA"]
[PlyCount "116"]
[EventDate "2019.04.06"]
[EventType "swiss"]
[EventCountry "GRE"]
[SourceTitle "playchess.com"]
[Source "ChessBase"]
[SourceQuality "1"]
[TimeControl "40/5400+30:1800+30"]

1. e4 {[%emt 0:00:00]} c5 {[%emt 0:00:00]} 2. Nc3 {[%emt 0:00:00]} e6 {[%emt 0:00:05]} 3. Nge2 {[%emt 0:00:02]} a6 {[%emt 0:00:14]} 4. g3 {[%emt 0:01:27]} b5 {[%emt 0:01:03]} 5. Bg2 {[%emt 0:00:19]} Bb7 {[%emt 0:00:11]} 6. O-O {[%emt 0:00:49]} Nf6 {[%emt 0:00:24]} 7. d3 {[%emt 0:01:42]} d6 {[%emt 0:00:12]} 8. f4 {[%emt 0:01:33]} Be7 {[%emt 0:00:14]} 9. h3 {[%emt 0:00:07]} h5 {[%emt 0:00:10]} 10. Qe1 {[%emt 0:11:20]} Nc6 {[%emt 0:04:32]} 11. a4 {[%emt 0:02:55]} b4 {[%emt 0:01:22]} 12. Nd1 {[%emt 0:00:03]} d5 {[%emt 0:00:43]} 13. e5 {[%emt 0:02:34]} Nd7 {[%emt 0:00:22]} 14. c3 {[%emt 0:01:32]} a5 {[%emt 0:00:13]} 15. d4 {[%emt 0:02:07]} bxc3 {[%emt 0:03:23]} 16. bxc3 {[%emt 0:00:07]} cxd4 {[%emt 0:00:04]} 17. cxd4 {[%emt 0:00:06]} Nb6 {[%emt 0:00:18]} 18. Ne3 {[%emt 0:06:51]} g6 {[%emt 0:00:37]} 19. Ba3 {[%emt 0:03:15]} Ba6 {[%emt 0:00:22]} 20. Bxe7 {[%emt 0:00:24]} Qxe7 {[%emt 0:01:48]} 21. Rf2 {[%emt 0:04:41]} Nb4 {[%emt 0:00:26]} 22. Nc1 {[%emt 0:02:23]} Rc8 {[%emt 0:00:12]} 23. Bf1 {[%emt 0:00:46]} Nc4 {[%emt 0:02:52]} 24. Nxc4 {[%emt 0:02:03]} Bxc4 {[%emt 0:00:50]} 25. Qd1 {[%emt 0:04:05]} O-O {[%emt 0:00:35]} 26. g4 {[%emt 0:02:06]} Bxf1 {[%emt 0:00:31]} 27. Qxf1 {[%emt 0:00:30]} Qh4 {[%emt 0:00:33]} 28. gxh5 {[%emt 0:07:27]} Qxh5 {[%emt 0:00:44]} 29. Ra3 {[%emt 0:02:47]} Nc2 {[%emt 0:00:19]} 30. Rd3 {[%emt 0:00:17]} Rc4 {[%emt 0:00:11]} 31. Nb3 {[%emt 0:00:56]} Rfc8 {[%emt 0:00:46]} 32. Nxa5 {[%emt 0:09:37]} Rc3 {[%emt 0:00:16]} 33. Rff3 {[%emt 0:02:03]} Nxd4 {[%emt 0:00:09]} 34. Rxc3 {[%emt 0:00:34]} Rxc3 {[%emt 0:00:01]} 35. Rxc3 {[%emt 0:02:17]} Ne2+ {[%emt 0:00:06]} 36. Kg2 {[%emt 0:02:03]} Nxc3 {[%emt 0:00:08]} 37. Nc6 {[%emt 0:05:36]} Nxa4 {[%emt 0:00:15]} 38. Nd4 {[%emt 0:00:23]} Kg7 {[%emt 0:00:24]} 39. Qa1 {[%emt 0:01:33]} Nc5 {[%emt 0:00:57]} 40. Qa7 {[%emt 0:00:00]} Ne4 {[%emt 0:00:00]} 41. Nxe6+ {[%emt 0:02:11]} Kh6 {[%emt 0:01:19]} 42. Nd4 {[%emt 0:02:23]} Qd1 {[%emt 0:00:19]} 43. Qa3 {[%emt 0:05:12]} Qd2+ {[%emt 0:00:39]} 44. Kh1 {[%emt 0:00:25]} Qe1+ {[%emt 0:00:06]} 45. Kh2 {[%emt 0:01:59]} Qf2+ {[%emt 0:00:15]} 46. Kh1 {[%emt 0:00:12]} Ng3+ {[%emt 0:00:04]} 47. Qxg3 {[%emt 0:00:12]} Qxg3 {[%emt 0:00:07]} 48. f5 {[%emt 0:00:51]} Qxh3+ {[%emt 0:00:06]} 49. Kg1 {[%emt 0:00:07]} Qe3+ {[%emt 0:00:05]} 50. Kg2 {[%emt 0:00:05]} Qxd4 {[%emt 0:00:07]} 51. fxg6 {[%emt 0:00:14]} Kxg6 {[%emt 0:00:05]} 52. Kf1 {[%emt 0:00:07]} Qe3 {[%emt 0:00:09]} 53. Kg2 {[%emt 0:00:09]} d4 {[%emt 0:00:04]} 54. e6 {[%emt 0:00:09]} d3 {[%emt 0:00:03]} 55. exf7 {[%emt 0:00:13]} Kxf7 {[%emt 0:00:05]} 56. Kh2 {[%emt 0:00:17]} d2 {[%emt 0:00:09]} 57. Kg2 {[%emt 0:00:04]} d1=Q {[%emt 0:00:08]} 58. Kh2 {[%emt 0:00:02]} Qdg1# {[%emt 0:00:07]} 0-1

[Event "European Amateur-ch U1700 2019"]
[Site "Rhodes"]
[Date "2019.04.08"]
[Round "3.5"]
[White "Ruzic, Milos"]
[Black "Bakhmanov, Farid"]
[Result "1-0"]
[ECO "B01"]
[WhiteElo "1674"]
[BlackElo "1491"]
[Annotator "NA"]
[PlyCount "117"]
[EventDate "2019.04.06"]
[EventType "swiss"]
[EventCountry "GRE"]
[SourceTitle "playchess.com"]
[Source "ChessBase"]
[SourceQuality "1"]
[TimeControl "40/5400+30:1800+30"]

1. e4 {[%emt 0:00:00]} d5 {[%emt 0:00:00]} 2. e5 {[%emt 0:00:00]} c5 {[%emt 0:00:00]} 3. h3 {[%emt 0:00:52]} Bf5 {[%emt 0:01:12]} 4. c3 {[%emt 0:00:31]} e6 {[%emt 0:00:16]} 5. a3 {[%emt 0:00:25]} Nc6 {[%emt 0:01:57]} 6. Bb5 {[%emt 0:01:14]} a6 {[%emt 0:02:20]} 7. Bxc6+ {[%emt 0:00:16]} bxc6 {[%emt 0:00:08]} 8. d4 {[%emt 0:00:06]} cxd4 {[%emt 0:00:38]} 9. cxd4 {[%emt 0:00:12]} c5 {[%emt 0:05:49]} 10. Ne2 {[%emt 0:12:54]} Qa5+ {[%emt 0:13:31]} 11. Nbc3 {[%emt 0:06:49]} Ne7 {[%emt 0:13:53]} 12. dxc5 {[%emt 0:05:46]} Qxc5 {[%emt 0:00:38]} 13. Be3 {[%emt 0:00:07]} Qc7 {[%emt 0:01:28]} 14. Qa4+ {[%emt 0:02:17]} Qc6 {[%emt 0:04:32]} 15. Nd4 {[%emt 0:01:13]} Qxa4 {[%emt 0:03:13]} 16. Nxa4 {[%emt 0:00:30]} Rc8 {[%emt 0:05:12]} 17. Kd2 {[%emt 0:01:00]} f6 {[%emt 0:02:54]} 18. exf6 {[%emt 0:01:13]} gxf6 {[%emt 0:00:24]} 19. g4 {[%emt 0:00:06]} e5 {[%emt 0:04:13]} 20. Nxf5 {[%emt 0:04:45]} Nxf5 {[%emt 0:00:13]} 21. gxf5 {[%emt 0:00:10]} d4 {[%emt 0:00:31]} 22. Bxd4 {[%emt 0:01:38]} exd4 {[%emt 0:00:46]} 23. Rae1+ {[%emt 0:01:33]} Kf7 {[%emt 0:00:58]} 24. Rhg1 {[%emt 0:03:01]} Bh6+ {[%emt 0:08:05]} 25. Kd3 {[%emt 0:00:06]} Rhd8 {[%emt 0:00:11]} 26. Re6 {[%emt 0:00:22]} a5 {[%emt 0:03:36]} 27. Ra6 {[%emt 0:03:36]} Ra8 {[%emt 0:09:35]} 28. Rxa8 {[%emt 0:01:14]} Rxa8 {[%emt 0:00:15]} 29. Rg4 {[%emt 0:00:09]} Rd8 {[%emt 0:02:49]} 30. Rxd4 {[%emt 0:00:17]} Rxd4+ {[%emt 0:00:07]} 31. Kxd4 {[%emt 0:00:05]} Ke7 {[%emt 0:04:46]} 32. Kd5 {[%emt 0:01:18]} Bd2 {[%emt 0:01:12]} 33. Nc5 {[%emt 0:01:01]} Be1 {[%emt 0:02:37]} 34. Nd3 {[%emt 0:01:22]} Bd2 {[%emt 0:00:13]} 35. b4 {[%emt 0:00:07]} axb4 {[%emt 0:00:36]} 36. axb4 {[%emt 0:00:05]} h5 {[%emt 0:00:32]} 37. Kc6 {[%emt 0:00:10]} h4 {[%emt 0:05:01]} 38. b5 {[%emt 0:00:08]} Ba5 {[%emt 0:00:34]} 39. Nf4 {[%emt 0:01:29]} Be1 {[%emt 0:01:40]} 40. Nd5+ {[%emt 0:00:00]} Kf7 {[%emt 0:00:00]} 41. f4 {[%emt 0:00:30]} Ke8 {[%emt 0:07:20]} 42. b6 {[%emt 0:00:57]} Bf2 {[%emt 0:00:15]} 43. Nxf6+ {[%emt 0:00:34]} Kf7 {[%emt 0:00:18]} 44. Nd5 {[%emt 0:00:10]} Bd4 {[%emt 0:01:24]} 45. b7 {[%emt 0:00:18]} Ba7 {[%emt 0:00:50]} 46. Kc7 {[%emt 0:00:06]} Ke8 {[%emt 0:00:30]} 47. f6 {[%emt 0:00:33]} Kf7 {[%emt 0:01:27]} 48. f5 {[%emt 0:00:44]} Bd4 {[%emt 0:01:55]} 49. b8=Q {[%emt 0:00:20]} Be5+ {[%emt 0:00:09]} 50. Kc8 {[%emt 0:00:06]} Bxb8 {[%emt 0:00:04]} 51. Kxb8 {[%emt 0:00:13]} Kf8 {[%emt 0:00:37]} 52. Kc7 {[%emt 0:00:08]} Ke8 {[%emt 0:00:07]} 53. Kd6 {[%emt 0:00:14]} Kf7 {[%emt 0:00:04]} 54. Ke5 {[%emt 0:00:10]} Ke8 {[%emt 0:00:53]} 55. Ke6 {[%emt 0:00:35]} Kf8 {[%emt 0:00:13]} 56. f7 {[%emt 0:00:28]} Kg7 {[%emt 0:00:19]} 57. Ke7 {[%emt 0:00:05]} Kh7 {[%emt 0:00:12]} 58. Nf6+ {[%emt 0:00:43]} Kg7 {[%emt 0:01:18]} 59. f8=Q# {[%emt 0:00:17]} 1-0

[Event "European Amateur-ch U1700 2019"]
[Site "Rhodes"]
[Date "2019.04.08"]
[Round "3.6"]
[White "Papadopoulos, Panteleimon"]
[Black "Snokowski, Marcin"]
[Result "1/2-1/2"]
[ECO "B27"]
[WhiteElo "1384"]
[BlackElo "1659"]
[Annotator "NA"]
[PlyCount "122"]
[EventDate "2019.04.06"]
[EventType "swiss"]
[EventCountry "GRE"]
[SourceTitle "playchess.com"]
[Source "ChessBase"]
[SourceQuality "1"]
[TimeControl "40/5400+30:1800+30"]

1. e4 {[%emt 0:00:00]} g6 {[%emt 0:00:00]} 2. d4 {[%emt 0:00:04]} Bg7 {[%emt 0:00:00]} 3. Nf3 {[%emt 0:01:58]} c5 {[%emt 0:01:15]} 4. Be3 {[%emt 0:03:44]} Qb6 {[%emt 0:02:25]} 5. b3 {[%emt 0:04:08]} d6 {[%emt 0:02:53]} 6. c3 {[%emt 0:04:22]} Nc6 {[%emt 0:06:04]} 7. h3 {[%emt 0:05:32]} e5 {[%emt 0:05:37]} 8. d5 {[%emt 0:08:08]} Nce7 {[%emt 0:04:03]} 9. Nbd2 {[%emt 0:03:27]} Qc7 {[%emt 0:01:49]} 10. Bb5+ {[%emt 0:02:17]} Bd7 {[%emt 0:02:50]} 11. Qe2 {[%emt 0:02:48]} Nf6 {[%emt 0:01:56]} 12. Bxd7+ {[%emt 0:05:55]} Nxd7 {[%emt 0:02:20]} 13. g4 {[%emt 0:01:48]} Qa5 {[%emt 0:03:45]} 14. Qd3 {[%emt 0:01:55]} h6 {[%emt 0:01:40]} 15. Nc4 {[%emt 0:01:25]} Qc7 {[%emt 0:00:41]} 16. Nfd2 {[%emt 0:03:10]} b5 {[%emt 0:04:27]} 17. Nb2 {[%emt 0:01:52]} Rb8 {[%emt 0:02:15]} 18. c4 {[%emt 0:01:35]} b4 {[%emt 0:04:11]} 19. Rb1 {[%emt 0:03:47]} Qa5 {[%emt 0:04:01]} 20. Na4 {[%emt 0:01:12]} Nb6 {[%emt 0:01:06]} 21. Nxb6 {[%emt 0:02:49]} axb6 {[%emt 0:04:21]} 22. Qc2 {[%emt 0:01:12]} Ra8 {[%emt 0:02:50]} 23. Ra1 {[%emt 0:01:11]} Qa7 {[%emt 0:01:34]} 24. Ke2 {[%emt 0:03:17]} O-O {[%emt 0:02:00]} 25. h4 {[%emt 0:01:42]} Qd7 {[%emt 0:00:38]} 26. Rag1 {[%emt 0:01:13]} Ra7 {[%emt 0:01:55]} 27. Rg2 {[%emt 0:01:57]} Rfa8 {[%emt 0:00:51]} 28. Ra1 {[%emt 0:00:42]} Ra6 {[%emt 0:03:51]} 29. Rgg1 {[%emt 0:05:07]} Qa7 {[%emt 0:00:43]} 30. Rgb1 {[%emt 0:01:06]} Kh8 {[%emt 0:04:22]} 31. g5 {[%emt 0:01:53]} h5 {[%emt 0:00:38]} 32. f3 {[%emt 0:00:40]} Qd7 {[%emt 0:00:51]} 33. Rh1 {[%emt 0:00:36]} R8a7 {[%emt 0:02:07]} 34. Kf2 {[%emt 0:01:15]} Qd8 {[%emt 0:00:56]} 35. Rhb1 {[%emt 0:00:20]} Ng8 {[%emt 0:05:58]} 36. Nf1 {[%emt 0:01:34]} f5 {[%emt 0:00:20]} 37. Kg2 {[%emt 0:01:06]} fxe4 {[%emt 0:05:36]} 38. Qxe4 {[%emt 0:00:24]} Rxa2+ {[%emt 0:00:32]} 39. Rxa2 {[%emt 0:02:11]} Rxa2+ {[%emt 0:01:29]} 40. Bf2 {[%emt 0:00:00]} Ne7 {[%emt 0:00:00]} 41. Ng3 {[%emt 0:04:52]} Qd7 {[%emt 0:05:41]} 42. Qd3 {[%emt 0:03:28]} Nf5 {[%emt 0:00:42]} 43. Qe4 {[%emt 0:00:48]} Qf7 {[%emt 0:02:46]} 44. Nf1 {[%emt 0:05:28]} Nd4 {[%emt 0:01:47]} 45. Ng3 {[%emt 0:01:22]} Qf4 {[%emt 0:02:41]} 46. Qd3 {[%emt 0:02:24]} Nf5 {[%emt 0:03:38]} 47. Nxf5 {[%emt 0:01:27]} gxf5 {[%emt 0:01:52]} 48. Kg1 {[%emt 0:00:50]} e4 {[%emt 0:02:48]} 49. Qe3 {[%emt 0:02:29]} Qe5 {[%emt 0:02:16]} 50. fxe4 {[%emt 0:03:05]} fxe4 {[%emt 0:03:53]} 51. Bg3 {[%emt 0:01:02]} Qd4 {[%emt 0:03:23]} 52. Qxd4 {[%emt 0:00:55]} Bxd4+ {[%emt 0:00:30]} 53. Kf1 {[%emt 0:00:44]} e3 {[%emt 0:01:04]} 54. Re1 {[%emt 0:02:33]} Ra7 {[%emt 0:02:27]} 55. g6 {[%emt 0:01:40]} Rd7 {[%emt 0:02:30]} 56. Bf4 {[%emt 0:00:49]} Re7 {[%emt 0:05:16]} 57. Ke2 {[%emt 0:01:30]} Be5 {[%emt 0:01:19]} 58. Bh6 {[%emt 0:01:37]} Bg7 {[%emt 0:00:22]} 59. Bf4 {[%emt 0:00:36]} Be5 {[%emt 0:01:09]} 60. Bh6 {[%emt 0:00:12]} Bg7 {[%emt 0:03:33]} 61. Bf4 {[%emt 0:00:13]} Be5 {[%emt 0:00:08]} 1/2-1/2

[Event "European Amateur-ch U1700 2019"]
[Site "Rhodes"]
[Date "2019.04.08"]
[Round "3.7"]
[White "Buzescu, Vladimir"]
[Black "Apostolakis, Ioannis"]
[Result "1/2-1/2"]
[ECO "C65"]
[WhiteElo "1620"]
[BlackElo "1439"]
[Annotator "NA"]
[PlyCount "36"]
[EventDate "2019.04.06"]
[EventType "swiss"]
[EventCountry "GRE"]
[SourceTitle "playchess.com"]
[Source "ChessBase"]
[SourceQuality "1"]
[TimeControl "40/5400+30:1800+30"]

1. e4 {[%emt 0:00:00]} e5 {[%emt 0:01:42]} 2. Nf3 {[%emt 0:00:00]} Nf6 {[%emt 0:00:13]} 3. Nc3 {[%emt 0:00:00]} Nc6 {[%emt 0:00:16]} 4. Bb5 {[%emt 0:00:43]} d6 {[%emt 0:00:05]} 5. h3 {[%emt 0:00:24]} Bd7 {[%emt 0:00:02]} 6. d3 {[%emt 0:00:39]} Be7 {[%emt 0:00:13]} 7. O-O {[%emt 0:00:35]} O-O {[%emt 0:00:06]} 8. Bg5 {[%emt 0:01:19]} a6 {[%emt 0:00:01]} 9. Bxc6 {[%emt 0:01:22]} Bxc6 {[%emt 0:00:29]} 10. Re1 {[%emt 0:01:25]} Nd7 {[%emt 0:01:17]} 11. Be3 {[%emt 0:01:33]} f5 {[%emt 0:01:48]} 12. exf5 {[%emt 0:00:58]} Rxf5 {[%emt 0:00:11]} 13. Ne4 {[%emt 0:01:25]} h6 {[%emt 0:11:09]} 14. Nh2 {[%emt 0:01:16]} Nf8 {[%emt 0:04:53]} 15. Qg4 {[%emt 0:02:41]} Bd7 {[%emt 0:00:02]} 16. Qg3 {[%emt 0:01:15]} Bh4 {[%emt 0:01:41]} 17. Qg4 {[%emt 0:00:34]} Rg5 {[%emt 0:00:04]} 18. Qf3 {[%emt 0:01:20]} Rf5 {[%emt 0:01:25]} 1/2-1/2